fUSD/lending_fUSD_20250511
["ID","MTS","AMOUNT","RATE_DAILY","PERIOD"]
[360728415,1746955854385,-239.68321097,0.00019891,2]
[360728416,1746955854395,-400.0,0.00019891,2]
[360728417,1746955854404,-400.0,0.00019891,2]
[360728418,1746955854413,-400.0,0.00019891,2]
[360728419,1746955854427,-332.18843624,0.00019891,2]
[360728420,1746955854436,-400.0,0.00019891,2]
[360728421,1746955854446,-215.8,0.00019891,2]
[360728422,1746955854455,-400.0,0.00019891,2]
[360728423,1746955854466,-400.0,0.00019891,2]
[360728424,1746955854475,-400.0,0.00019891,2]
[360728425,1746955854485,-472.87,0.00019891,2]
[360728426,1746955854494,-472.87,0.00019891,2]
[360728427,1746955854503,-472.87,0.00019891,2]
[360728428,1746955854513,-400.0,0.00019891,2]
[360728429,1746955854522,-400.0,0.00019891,2]
[360728430,1746955854531,-400.0,0.00019891,2]
[360728431,1746955854541,-400.0,0.00019891,2]
[360728432,1746955854550,-400.0,0.00019891,2]
[360728433,1746955854559,-400.0,0.00019891,2]
[360728434,1746955854568,-400.0,0.00019891,2]
[360728435,1746955854578,-400.0,0.00019891,2]
[360728436,1746955854587,-400.0,0.00019891,2]
[360728437,1746955854597,-449.17,0.00019891,2]
[360728438,1746955854606,-400.0,0.00019891,2]
[360728439,1746955854616,-456.44317151,0.00019891,2]
[360728440,1746955854625,-449.17,0.00019891,2]
[360728441,1746955854636,-400.0,0.00019891,2]
[360728442,1746955854646,-449.17,0.00019891,2]
[360728443,1746955854655,-400.0,0.00019891,2]
[360728444,1746955854665,-400.0,0.00019891,2]
[360728445,1746955854674,-400.0,0.00019891,2]
[360728446,1746955854684,-389.00036455,0.00019891,2]
[360728447,1746955854693,-300.0,0.00019891,2]
[360728448,1746955854702,-300.0,0.00019891,2]
[360728449,1746955854712,-400.0,0.00019891,2]
[360728450,1746955854724,-400.0,0.00019891,2]
[360728451,1746955854733,-2366.32,0.00019891,2]
[360728452,1746955854743,-400.0,0.00019891,2]
[360728453,1746955854753,-2366.32,0.00019891,2]
[360728454,1746955854762,-400.0,0.00019891,2]
[360728455,1746955854771,-2366.32,0.00019891,2]
[360728456,1746955854781,-400.0,0.00019891,2]
[360728457,1746955854790,-400.0,0.00019891,2]
[360728458,1746955854799,-400.0,0.00019891,2]
[360728459,1746955854808,-400.0,0.00019891,2]
[360728460,1746955854817,-400.0,0.00019891,2]
[360728461,1746955854827,-400.0,0.00019891,2]
[360728462,1746955854836,-400.0,0.00019891,2]
[360728463,1746955854847,-400.0,0.00019891,2]
[360728464,1746955854857,-400.0,0.00019891,2]
[360728465,1746955854867,-400.0,0.00019891,2]
[360728466,1746955854878,-400.0,0.00019891,2]
[360728467,1746955854888,-390.21652583,0.00019891,2]
[360728468,1746955854899,-303.30235434,0.00019891,2]
[360728469,1746955854910,-400.0,0.00019891,2]
[360728470,1746955854920,-400.0,0.00019891,2]
[360728471,1746955854931,-400.0,0.00019891,2]
[360728472,1746955854941,-400.0,0.00019891,2]
[360728473,1746955854952,-184.01,0.00019891,2]
[360728474,1746955854962,-400.0,0.00019891,2]
[360728475,1746955854973,-400.0,0.00019891,2]
[360728476,1746955854983,-400.0,0.00019891,2]
[360728477,1746955854993,-400.0,0.00019891,2]
[360728478,1746955855004,-400.0,0.00019891,2]
[360728479,1746955855014,-400.0,0.00019891,2]
[360728480,1746955855024,-469.79783172,0.00019891,2]
[360728481,1746955855033,-400.0,0.00019891,2]
[360728482,1746955855043,-400.0,0.00019891,2]
[360728483,1746955855054,-400.0,0.00019891,2]
[360728484,1746955855064,-2616.37,0.00019891,2]
[360728485,1746955855075,-450.0,0.00019891,2]
[360728486,1746955855084,-2616.37,0.00019891,2]
[360728487,1746955855094,-400.0,0.00019891,2]
[360728488,1746955855104,-436.03192084,0.00019891,2]
[360728489,1746955855114,-467.88799459,0.00019891,2]
[360728490,1746955855124,-2616.37,0.00019891,2]
[360728491,1746955855134,-328.81,0.00019891,2]
[360728492,1746955855144,-400.0,0.00019891,2]
[360728493,1746955855154,-400.0,0.00019891,2]
[360728494,1746955855164,-764.98,0.00019891,2]
[360728495,1746955855174,-764.98,0.00019891,2]
[360728496,1746955855185,-764.98,0.00019891,2]
[360728497,1746955855195,-400.0,0.00019891,2]
[360728498,1746955855205,-484.22430181,0.00019891,2]
[360728499,1746955855216,-400.0,0.00019891,2]
[360728500,1746955855226,-400.0,0.00019891,2]
[360728501,1746955855235,-1782.12,0.00019891,2]
[360728502,1746955855245,-400.0,0.00019891,2]
[360728503,1746955855255,-1782.12,0.00019891,2]
[360728504,1746955855265,-400.0,0.00019891,2]
[360728505,1746955855274,-400.0,0.00019891,2]
[360728506,1746955855284,-1782.12,0.00019891,2]
[360728507,1746955855294,-400.0,0.00019891,2]
[360728508,1746955855303,-400.0,0.00019891,2]
[360728509,1746955855312,-400.0,0.00019891,2]
[360728510,1746955855322,-400.0,0.00019891,2]
[360728511,1746955855334,-400.0,0.00019891,2]
[360728512,1746955855346,-400.0,0.00019891,2]
[360728513,1746955855355,-334.11993043,0.00019891,2]
[360728514,1746955855365,-400.0,0.00019891,2]
[360728515,1746955855375,-400.0,0.00019891,2]
[360728516,1746955855384,-400.0,0.00019891,2]
[360728517,1746955855394,-400.0,0.00019891,2]
[360728518,1746955855404,-400.0,0.00019891,2]
[360728519,1746955855414,-400.0,0.00019891,2]
[360728520,1746955855423,-400.0,0.00019891,2]
[360728521,1746955855433,-400.0,0.00019891,2]
[360728522,1746955855443,-400.0,0.00019891,2]
[360728523,1746955855453,-400.0,0.00019891,2]
[360728524,1746955855463,-439.8,0.00019891,2]
[360728525,1746955855474,-400.0,0.00019891,2]
[360728526,1746955855483,-439.8,0.00019891,2]
[360728527,1746955855493,-439.8,0.00019891,2]
[360728528,1746955855505,-2365.27,0.00019891,2]
[360728529,1746955855514,-2365.27,0.00019891,2]
[360728530,1746955855524,-400.0,0.00019891,2]
[360728531,1746955855533,-2365.27,0.00019891,2]
[360728532,1746955855543,-553.78,0.00019891,2]
[360728533,1746955855554,-400.0,0.00019891,2]
[360728534,1746955855563,-553.78,0.00019891,2]
[360728535,1746955855574,-400.0,0.00019891,2]
[360728536,1746955855583,-553.78,0.00019891,2]
[360728537,1746955855593,-400.0,0.00019891,2]
[360728538,1746955855603,-400.0,0.00019891,2]
[360728539,1746955855612,-400.0,0.00019891,2]
[360728540,1746955855622,-400.0,0.00019891,2]
[360728541,1746955855632,-330.94,0.00019891,2]
[360728542,1746955855642,-400.0,0.00019891,2]
[360728543,1746955855652,-400.0,0.00019891,2]
[360728544,1746955855662,-400.0,0.00019891,2]
[360728545,1746955855672,-454.03,0.00019891,2]
[360728546,1746955855681,-400.0,0.00019891,2]
[360728547,1746955855691,-454.03,0.00019891,2]
[360728548,1746955855700,-454.03,0.00019891,2]
[360728549,1746955855710,-671.24,0.00019891,2]
[360728550,1746955855720,-671.24,0.00019891,2]
[360728551,1746955855729,-671.24,0.00019891,2]
[360728552,1746955855739,-400.0,0.00019891,2]
[360728553,1746955855748,-400.0,0.00019891,2]
[360728554,1746955855758,-400.0,0.00019891,2]
[360728555,1746955855768,-400.0,0.00019891,2]
[360728556,1746955855778,-400.0,0.00019891,2]
[360728557,1746955855787,-400.0,0.00019891,2]
[360728558,1746955855797,-400.0,0.00019891,2]
[360728559,1746955855807,-400.0,0.00019891,2]
[360728560,1746955855816,-400.0,0.00019891,2]
[360728561,1746955855971,-472.30468295,0.00019891,2]
[360728562,1746955855982,-1030.91,0.00019891,2]
[360728563,1746955855992,-1030.91,0.00019891,2]
[360728564,1746955856002,-1030.91,0.00019891,2]
[360728565,1746955856012,-400.0,0.00019891,2]
[360728566,1746955856022,-1030.91,0.00019891,2]
[360728567,1746955856033,-400.0,0.00019891,2]
[360728568,1746955856043,-1030.91,0.00019891,2]
[360728569,1746955856052,-400.0,0.00019891,2]
[360728570,1746955856063,-1030.91,0.00019891,2]
[360728571,1746955856073,-400.0,0.00019891,2]
[360728572,1746955856083,-774.01,0.00019891,2]
[360728573,1746955856093,-1030.91,0.00019891,2]
[360728574,1746955856103,-400.0,0.00019891,2]
[360728575,1746955856113,-774.01,0.00019891,2]
[360728576,1746955856123,-400.0,0.00019891,2]
[360728577,1746955856133,-400.0,0.00019891,2]
[360728578,1746955856143,-400.0,0.00019891,2]
[360728579,1746955856153,-400.0,0.00019891,2]
[360728580,1746955856164,-400.0,0.00019891,2]
[360728581,1746955856175,-400.0,0.00019891,2]
[360728582,1746955856185,-400.0,0.00019891,2]
[360728583,1746955856195,-400.0,0.00019891,2]
[360728584,1746955856205,-400.0,0.00019891,2]
[360728585,1746955856215,-400.0,0.00019891,2]
[360728586,1746955856226,-400.0,0.00019891,2]
[360728587,1746955856236,-400.0,0.00019891,2]
[360728588,1746955856245,-400.0,0.00019891,2]
[360728589,1746955856256,-500.0,0.00019891,2]
[360728590,1746955856266,-400.0,0.00019891,2]
[360728591,1746955856276,-295.2143845,0.00019891,2]
[360728592,1746955856286,-400.0,0.00019891,2]
[360728593,1746955856296,-400.0,0.00019891,2]
[360728594,1746955856307,-400.0,0.00019891,2]
[360728595,1746955856317,-400.0,0.00019891,2]
[360728596,1746955856326,-400.0,0.00019891,2]
[360728597,1746955856337,-528.67,0.00019891,2]
[360728598,1746955856347,-400.0,0.00019891,2]
[360728599,1746955856357,-400.0,0.00019891,2]
[360728600,1746955856367,-198.85,0.00019891,2]
[360728601,1746955856376,-400.0,0.00019891,2]
[360728602,1746955856387,-400.0,0.00019891,2]
[360728603,1746955856396,-400.0,0.00019891,2]
[360728604,1746955856405,-400.0,0.00019891,2]
[360728605,1746955856415,-432.4,0.00019891,2]
[360728606,1746955856426,-400.0,0.00019891,2]
[360728607,1746955856436,-644.7,0.00019891,2]
[360728608,1746955856446,-644.7,0.00019891,2]
[360728609,1746955856456,-644.7,0.00019891,2]
[360728610,1746955856467,-400.0,0.00019891,2]
[360728611,1746955856478,-400.0,0.00019891,2]
[360728612,1746955856487,-400.0,0.00019891,2]
[360728613,1746955856496,-400.0,0.00019891,2]
[360728614,1746955856505,-418.20184355,0.00019891,2]
[360728615,1746955856515,-400.0,0.00019891,2]
[360728616,1746955856525,-314.30956351,0.00019891,2]
[360728617,1746955856558,-85.69043649,0.00019891,2]
[360728618,1746955856568,-400.0,0.00019891,2]
[360728619,1746955856578,-400.0,0.00019891,2]
[360728620,1746955856588,-400.0,0.00019891,2]
[360728621,1746955856597,-449.97997022,0.00019891,2]
[360728622,1746955856862,-86.65002978,0.00019891,2]
[360728623,1746955856872,-400.0,0.00019891,2]
[360728624,1746955856881,-401.90924508,0.00019891,2]
[360728625,1746955856891,-536.63,0.00019891,2]
[360728626,1746955856901,-536.63,0.00019891,2]
[360728627,1746955856911,-536.63,0.00019891,2]
[360728628,1746955856920,-400.0,0.00019891,2]
[360728629,1746955856930,-536.63,0.00019891,2]
[360728630,1746955856939,-536.63,0.00019891,2]
[360728631,1746955856948,-310.27076209,0.00019891,2]
[360728632,1746955856960,-226.35923791,0.00019891,2]
[360728633,1746955856971,-400.0,0.00019891,2]
[360728634,1746955856981,-400.0,0.00019891,2]
[360728635,1746955856990,-400.0,0.00019891,2]
[360728636,1746955857000,-400.0,0.00019891,2]
[360728637,1746955857010,-8325.9,0.00019891,2]
[360728638,1746955857019,-400.0,0.00019891,2]
[360728639,1746955857029,-6067.76474209,0.00019891,2]
[360728640,1746955857040,-1915.89270684,0.00019891,2]
[360728641,1746955857052,-342.24255107,0.00019891,2]
[360728642,1746955857062,-191.19691873,0.00019891,2]
[360728643,1746955857073,-208.80308127,0.00019891,2]
[360728644,1746955857082,-134.88635307,0.00019891,2]
[360728645,1746955857094,-8191.01364693,0.00019891,2]
[360728646,1746955857103,-400.0,0.00019891,2]
[360728647,1746955857113,-400.0,0.00019891,2]
[360728648,1746955857122,-400.0,0.00019891,2]
[360728649,1746955857131,-400.0,0.00019891,2]
[360728650,1746955857141,-431.73,0.00019891,2]
[360728651,1746955857150,-431.73,0.00019891,2]
[360728652,1746955857159,-431.73,0.00019891,2]
[360728653,1746955857169,-498.52,0.00019891,2]
[360728654,1746955857178,-619.78,0.00019891,2]
[360728655,1746955857188,-619.78,0.00019891,2]
[360728656,1746955857197,-619.78,0.00019891,2]
[360728657,1746955857207,-400.0,0.00019891,2]
[360728658,1746955857216,-205.33,0.00019891,2]
[360728659,1746955857228,-432.47,0.00019891,2]
[360728660,1746955857238,-432.47,0.00019891,2]
[360728661,1746955857247,-432.47,0.00019891,2]
[360728662,1746955857257,-576.05,0.00019891,2]
[360728663,1746955857267,-576.05,0.00019891,2]
[360728664,1746955857276,-576.05,0.00019891,2]
[360728665,1746955857285,-400.0,0.00019891,2]
[360728666,1746955857294,-400.0,0.00019891,2]
[360728667,1746955857304,-400.0,0.00019891,2]
[360728668,1746955857313,-400.0,0.00019891,2]
[360728669,1746955857323,-390.83697599,0.00019891,2]
[360728670,1746955857333,-400.0,0.00019891,2]
[360728671,1746955857346,-400.0,0.00019891,2]
[360728672,1746955857355,-400.0,0.00019891,2]
[360728673,1746955857364,-400.0,0.00019891,2]
[360728674,1746955857374,-400.0,0.00019891,2]
[360728675,1746955857384,-400.0,0.00019891,2]
[360728676,1746955857393,-400.0,0.00019891,2]
[360728677,1746955857402,-400.0,0.00019891,2]
[360728678,1746955857411,-400.0,0.00019891,2]
[360728679,1746955857422,-400.0,0.00019891,2]
[360728680,1746955857431,-400.0,0.00019891,2]
[360728681,1746955857441,-400.0,0.00019891,2]
[360728682,1746955857450,-400.0,0.00019891,2]
[360728683,1746955857460,-400.0,0.00019891,2]
[360728684,1746955857470,-851.35,0.00019891,2]
[360728685,1746955857479,-400.0,0.00019891,2]
[360728686,1746955857488,-400.0,0.00019891,2]
[360728687,1746955857497,-400.0,0.00019891,2]
[360728688,1746955857507,-851.35,0.00019891,2]
[360728689,1746955857517,-400.0,0.00019891,2]
[360728690,1746955857526,-851.35,0.00019891,2]
[360728691,1746955857535,-400.0,0.00019891,2]
[360728692,1746955857545,-400.0,0.00019891,2]
[360728693,1746955857554,-400.0,0.00019891,2]
[360728694,1746955857563,-227.93,0.00019891,2]
[360728695,1746955857573,-400.0,0.00019891,2]
[360728696,1746955857582,-400.0,0.00019891,2]
[360728697,1746955857591,-400.0,0.00019891,2]
[360728698,1746955857601,-400.0,0.00019891,2]
[360728699,1746955857611,-400.0,0.00019891,2]
[360728700,1746955857620,-400.0,0.00019891,2]
[360728701,1746955857629,-400.0,0.00019891,2]
[360728702,1746955857638,-400.0,0.00019891,2]
[360728703,1746955857648,-400.0,0.00019891,2]
[360728704,1746955857657,-400.0,0.00019891,2]
[360728705,1746955857666,-400.0,0.00019891,2]
[360728706,1746955857676,-291.82,0.00019891,2]
[360728707,1746955857686,-515.27,0.00019891,2]
[360728708,1746955857696,-400.0,0.00019891,2]
[360728709,1746955857705,-515.27,0.00019891,2]
[360728710,1746955857714,-400.0,0.00019891,2]
[360728711,1746955857725,-515.27,0.00019891,2]
[360728712,1746955857735,-400.0,0.00019891,2]
[360728713,1746955857745,-515.27,0.00019891,2]
[360728714,1746955857754,-515.27,0.00019891,2]
[360728715,1746955857763,-515.27,0.00019891,2]
[360728716,1746955857772,-515.27,0.00019891,2]
[360728717,1746955857782,-400.0,0.00019891,2]
[360728718,1746955857792,-400.0,0.00019891,2]
[360728719,1746955857802,-400.0,0.00019891,2]
[360728720,1746955857813,-400.0,0.00019891,2]
[360728721,1746955857823,-400.0,0.00019891,2]
[360728722,1746955857832,-400.0,0.00019891,2]
[360728723,1746955857842,-150.0,0.00019891,2]
[360728724,1746955857851,-839.18,0.00019891,2]
[360728725,1746955857860,-362.984611,0.00019891,2]
[360728726,1746955857869,-839.18,0.00019891,2]
[360728727,1746955857879,-839.18,0.00019891,2]
[360728728,1746955857888,-400.0,0.00019891,2]
[360728729,1746955857898,-400.0,0.00019891,2]
[360728730,1746955857908,-400.0,0.00019891,2]
[360728731,1746955857917,-400.0,0.00019891,2]
[360728732,1746955857926,-400.0,0.00019891,2]
[360728733,1746955857935,-400.0,0.00019891,2]
[360728734,1746955857945,-400.0,0.00019891,2]
[360728735,1746955857954,-400.0,0.00019891,2]
[360728736,1746955857964,-400.0,0.00019891,2]
[360728737,1746955857975,-400.0,0.00019891,2]
[360728738,1746955857985,-400.0,0.00019891,2]
[360728739,1746955857994,-400.0,0.00019891,2]
[360728740,1746955858003,-400.0,0.00019891,2]
[360728741,1746955858012,-400.0,0.00019891,2]
[360728742,1746955858022,-400.0,0.00019891,2]
[360728743,1746955858031,-682.29,0.00019891,2]
[360728744,1746955858040,-400.0,0.00019891,2]
[360728745,1746955858049,-682.29,0.00019891,2]
[360728746,1746955858059,-400.0,0.00019891,2]
[360728747,1746955858068,-682.29,0.00019891,2]
[360728748,1746955858077,-682.29,0.00019891,2]
[360728749,1746955858087,-400.0,0.00019891,2]
[360728750,1746955858097,-682.29,0.00019891,2]
[360728751,1746955858106,-400.0,0.00019891,2]
[360728752,1746955858116,-400.0,0.00019891,2]
[360728753,1746955858125,-682.29,0.00019891,2]
[360728754,1746955858135,-400.0,0.00019891,2]
[360728755,1746955858144,-682.29,0.00019891,2]
[360728756,1746955858154,-400.0,0.00019891,2]
[360728757,1746955858164,-400.0,0.00019891,2]
[360728758,1746955858174,-400.0,0.00019891,2]
[360728759,1746955858183,-400.0,0.00019891,2]
[360728760,1746955858194,-466.8,0.00019891,2]
[360728761,1746955858203,-2321.63,0.00019891,2]
[360728762,1746955858213,-400.0,0.00019891,2]
[360728763,1746955858224,-400.0,0.00019891,2]
[360728764,1746955858234,-2321.63,0.00019891,2]
[360728765,1746955858244,-400.0,0.00019891,2]
[360728766,1746955858253,-2321.63,0.00019891,2]
[360728767,1746955858262,-400.0,0.00019891,2]
[360728768,1746955858272,-400.0,0.00019891,2]
[360728769,1746955858323,-400.0,0.00019891,2]
[360728770,1746955858332,-400.0,0.00019891,2]
[360728771,1746955858341,-400.0,0.00019891,2]
[360728772,1746955858353,-400.0,0.00019891,2]
[360728773,1746955858362,-400.0,0.00019891,2]
[360728774,1746955858371,-400.0,0.00019891,2]
[360728775,1746955858381,-400.0,0.00019891,2]
[360728776,1746955858390,-400.0,0.00019891,2]
[360728777,1746955858399,-400.0,0.00019891,2]
[360728778,1746955858408,-400.0,0.00019891,2]
[360728779,1746955858418,-400.0,0.00019891,2]
[360728780,1746955858430,-400.0,0.00019891,2]
[360728781,1746955858440,-400.0,0.00019891,2]
[360728782,1746955858449,-400.0,0.00019891,2]
[360728783,1746955858459,-339.38056369,0.00019891,2]
[360728784,1746955858469,-400.0,0.00019891,2]
[360728785,1746955858479,-400.0,0.00019891,2]
[360728786,1746955858488,-14507.7539086,0.00019891,2]
[360728787,1746955944610,250.0,0.00017,2]
[360728788,1746956000771,500.0,0.00029844,120]
[360728789,1746956074161,1802.0,0.0003013,120]
[360728790,1746956074972,1193.0,0.0003,30]
[360728791,1746956134796,512.15156866,0.0003013,120]
[360728795,1746956546556,770.18,0.00016931,2]
[360728797,1746956599231,151.97,0.00013699,2]
[360728798,1746956609996,500.0,0.00029844,120]
[360728799,1746956664325,156.82339,0.0003,30]
[360728801,1746956709203,155.0,0.0003,30]
[360728802,1746956718886,253.33,0.00020575,30]
[360728804,1746956755938,1391.2635495,0.0003,120]
[360728807,1746956838667,1600.0,0.000259,120]
[360728808,1746956839070,1600.0,0.00028254,120]
[360728809,1746956846118,-1097.2428982,0.00018836,2]
[360728811,1746956903399,258.4,0.000172,2]
[360728812,1746956918098,150.0,0.000185,5]
[360728817,1746956939172,-497.822367,0.00018742,2]
[360728818,1746956939199,-502.7571018,0.00018836,2]
[360728819,1746956939226,-524.55,0.00018846,2]
[360728820,1746956939252,-233.09,0.0001887,2]
[360728821,1746956939279,-1000.0,0.00018885,2]
[360728822,1746956939306,-150.0,0.00018986,7]
[360728823,1746956939332,-300.0,0.00019,2]
[360728824,1746956939359,-770.18,0.00019195,2]
[360728825,1746956939386,-166.73,0.00019411,2]
[360728826,1746956939413,-354.82,0.00019591,2]
[360728827,1746956939440,-1200.0,0.00019725,2]
[360728828,1746956939466,-1000.0,0.00019726,2]
[360728829,1746956939492,-1000.0,0.00019726,2]
[360728830,1746956939518,-1000.0,0.00019726,2]
[360728831,1746956939543,-1000.0,0.00019726,2]
[360728832,1746956939569,-1000.0,0.00019726,2]
[360728833,1746956939594,-1000.0,0.00019726,2]
[360728834,1746956939620,-1000.0,0.00019726,2]
[360728835,1746956939645,-1659.63695433,0.00019726,2]
[360728836,1746956939671,-151.0,0.00019777,2]
[360728837,1746956939700,-155.0,0.00019777,2]
[360728838,1746956939727,-207.4,0.00019777,2]
[360728839,1746956939753,-668.65185757,0.00019777,2]
[360728840,1746956939781,-1729.98703202,0.00019788,2]
[360728841,1746956939807,-215.17592551,0.00019788,2]
[360728842,1746956939834,-3856.06813624,0.00019789,2]
[360728843,1746956939860,-218.39480394,0.00019789,2]
[360728844,1746956939886,-11303.3027,0.00019789,2]
[360728845,1746956939914,-461.23858167,0.0001979,2]
[360728846,1746956939942,-1000.0,0.00019791,2]
[360728847,1746956939971,-500.0,0.00019799,2]
[360728848,1746956940004,-500.0,0.00019799,2]
[360728849,1746956940033,-367.08319728,0.00019799,2]
[360728850,1746956940067,-500.0,0.00019799,2]
[360728851,1746956940099,-500.0,0.00019799,2]
[360728852,1746956940132,-500.0,0.00019799,2]
[360728853,1746956940166,-500.0,0.00019799,2]
[360728854,1746956940199,-609.38624217,0.00019799,2]
[360728855,1746956940225,-623.0,0.000198,2]
[360728856,1746956940253,-3856.06813615,0.00019801,2]
[360728857,1746956940280,-218.39480386,0.00019801,2]
[360728858,1746956940307,-1729.98703197,0.0001981,2]
[360728859,1746956940336,-3856.06813615,0.00019814,2]
[360728860,1746956940363,-218.39480386,0.00019814,2]
[360728861,1746956940394,-3856.06813615,0.00019826,2]
[360728862,1746956940421,-218.39480386,0.00019826,2]
[360728863,1746956940447,-1729.98703197,0.00019833,2]
[360728864,1746956940475,-3856.06813615,0.00019838,2]
[360728865,1746956940501,-218.39480386,0.00019838,2]
[360728866,1746956940529,-3856.06813615,0.00019851,2]
[360728867,1746956940556,-218.39480386,0.00019851,2]
[360728868,1746956940584,-1729.98703197,0.00019855,2]
[360728869,1746956940614,-3856.06813615,0.00019863,2]
[360728870,1746956940642,-218.39480386,0.00019863,2]
[360728871,1746956940669,-190.0,0.00019863,2]
[360728872,1746956940708,-598.25045734,0.00019873,2]
[360728873,1746956940735,-500.0,0.00019873,2]
[360728874,1746956940763,-500.0,0.00019873,2]
[360728875,1746956940791,-612.64823099,0.00019873,2]
[360728876,1746956940817,-500.0,0.00019873,2]
[360728877,1746956940844,-500.0,0.00019873,2]
[360728878,1746956940871,-500.61411979,0.00019873,2]
[360728879,1746956940896,-500.0,0.00019873,2]
[360728880,1746956940923,-550.14715315,0.00019873,2]
[360728881,1746956940950,-501.6822209,0.00019873,2]
[360728882,1746956940978,-3856.06813615,0.00019875,2]
[360728883,1746956941194,-218.39480386,0.00019875,2]
[360728884,1746956941221,-1729.98703197,0.00019878,2]
[360728885,1746956941249,-157.23,0.00019879,2]
[360728886,1746956941275,-647.48067344,0.00019881,2]
[360728887,1746956941303,-1263.907,0.00019881,2]
[360728888,1746956941330,-6295.4593618,0.00019882,2]
[360728889,1746956941356,-185.0054801,0.00019883,2]
[360728890,1746956941383,-4650.4254881,0.00019883,2]
[360728891,1746956941410,-840.6814431,0.00019883,2]
[360728892,1746956941436,-3393.516408,0.00019883,2]
[360728893,1746956941464,-500.0,0.00019884,2]
[360728894,1746956941493,-545.33547259,0.00019884,2]
[360728895,1746956941523,-500.0,0.00019884,2]
[360728896,1746956941550,-500.0,0.00019884,2]
[360728897,1746956941579,-500.0,0.00019884,2]
[360728898,1746956941606,-91210.6505631,0.00019885,2]
[360728899,1746956941903,-497.822367,0.00019885,2]
[360728900,1746956941915,-502.7571018,0.00019885,2]
[360728901,1746956941926,-524.55,0.00019885,2]
[360728902,1746956941942,-233.09,0.00019885,2]
[360728903,1746956941952,-1000.0,0.00019885,2]
[360728904,1746956941964,-150.0,0.00019885,2]
[360728905,1746956941975,-300.0,0.00019885,2]
[360728906,1746956941986,-770.18,0.00019885,2]
[360728907,1746956941997,-166.73,0.00019885,2]
[360728908,1746956942012,-354.82,0.00019885,2]
[360728909,1746956942023,-1200.0,0.00019885,2]
[360728910,1746956942034,-1000.0,0.00019885,2]
[360728911,1746956942044,-1000.0,0.00019885,2]
[360728912,1746956942056,-1000.0,0.00019885,2]
[360728913,1746956942067,-976.3014968,0.00019885,2]
[360728914,1746956942076,-23.6985032,0.00019887,2]
[360728915,1746956942115,-376.3014968,0.00019887,2]
[360728916,1746956942125,-400.0,0.00019887,2]
[360728917,1746956942135,-223.6985032,0.00019887,2]
[360728918,1746956942146,-176.3014968,0.00019887,2]
[360728919,1746956942156,-400.0,0.00019887,2]
[360728920,1746956942166,-400.0,0.00019887,2]
[360728921,1746956942175,-23.6985032,0.00019887,2]
[360728922,1746956942187,-376.3014968,0.00019887,2]
[360728923,1746956942196,-508.9945415,0.00019887,2]
[360728924,1746956942206,-114.7039617,0.00019887,2]
[360728925,1746956942222,-285.2960383,0.00019887,2]
[360728926,1746956942232,-400.0,0.00019887,2]
[360728927,1746956942241,-259.29006995,0.00019887,2]